[Event "Live Chess"]
[Site "Chess.com"]
[Date "2010.12.14"]
[Round "-"]
[White "dantime13"]
[Black "hipposcottimus"]
[Result "1-0"]
[CurrentPosition "8/8/1p5q/7P/1kp3R1/8/5PK1/8 b - -"]
[Timezone "UTC"]
[ECO "C44"]
[ECOUrl "https://www.chess.com/openings/Ponziani-Opening-3...d5"]
[UTCDate "2010.12.14"]
[UTCTime "11:24:34"]
[WhiteElo "1669"]
[BlackElo "1605"]
[TimeControl "60"]
[Termination "dantime13 won on time"]
[StartTime "11:24:34"]
[EndDate "2010.12.14"]
[EndTime "11:26:49"]
[Link "https://www.chess.com/game/live/77178527"]

1. e4 {[%clk 0:01:00]} 1... e5 {[%clk 0:01:00]} 2. Nf3 {[%clk 0:00:59.4]} 2... Nc6 {[%clk 0:00:59.7]} 3. c3 {[%clk 0:00:59.1]} 3... d5 {[%clk 0:00:56.5]} 4. d4 {[%clk 0:00:59.1]} 4... dxe4 {[%clk 0:00:55.3]} 5. Nxe5 {[%clk 0:00:57.9]} 5... Nxe5 {[%clk 0:00:54.7]} 6. dxe5 {[%clk 0:00:57.3]} 6... Qxd1+ {[%clk 0:00:54.2]} 7. Kxd1 {[%clk 0:00:57.3]} 7... Ne7 {[%clk 0:00:53.9]} 8. Bd2 {[%clk 0:00:56.6]} 8... Ng6 {[%clk 0:00:53.1]} 9. c4 {[%clk 0:00:52.8]} 9... Nxe5 {[%clk 0:00:51.3]} 10. Nc3 {[%clk 0:00:51.7]} 10... Be6 {[%clk 0:00:50.2]} 11. Nxe4 {[%clk 0:00:50.7]} 11... Nxc4 {[%clk 0:00:49.5]} 12. Bxc4 {[%clk 0:00:49.9]} 12... Bxc4 {[%clk 0:00:48.8]} 13. Rc1 {[%clk 0:00:49.3]} 13... Bd5 {[%clk 0:00:40.4]} 14. Ng5 {[%clk 0:00:47]} 14... Bxg2 {[%clk 0:00:38.9]} 15. Rg1 {[%clk 0:00:45.6]} 15... Bc6 {[%clk 0:00:35.6]} 16. b4 {[%clk 0:00:44]} 16... O-O-O {[%clk 0:00:35.2]} 17. a3 {[%clk 0:00:42.4]} 17... Ba4+ {[%clk 0:00:33.8]} 18. Ke1 {[%clk 0:00:38.3]} 18... Be7 {[%clk 0:00:33.3]} 19. Nxf7 {[%clk 0:00:36.8]} 19... Rhe8 {[%clk 0:00:29.7]} 20. Nxd8 {[%clk 0:00:35.8]} 20... Bxd8+ {[%clk 0:00:29.2]} 21. Kf1 {[%clk 0:00:35.5]} 21... g6 {[%clk 0:00:28.5]} 22. Bg5 {[%clk 0:00:33.8]} 22... Bc6 {[%clk 0:00:24.1]} 23. Bxd8 {[%clk 0:00:32.3]} 23... Bb5+ {[%clk 0:00:23.9]} 24. Kg2 {[%clk 0:00:29.8]} 24... Rxd8 {[%clk 0:00:23.6]} 25. Rge1 {[%clk 0:00:28.3]} 25... Rd2 {[%clk 0:00:21.7]} 26. Re8+ {[%clk 0:00:26.5]} 26... Kd7 {[%clk 0:00:21.4]} 27. Re3 {[%clk 0:00:23.4]} 27... Ra2 {[%clk 0:00:20.2]} 28. Rce1 {[%clk 0:00:22.5]} 28... Rxa3 {[%clk 0:00:18]} 29. Rxa3 {[%clk 0:00:21.1]} 29... Bc6+ {[%clk 0:00:17.3]} 30. Kf1 {[%clk 0:00:18.9]} 30... Bd5 {[%clk 0:00:16.4]} 31. Kg1 {[%clk 0:00:17.7]} 31... Kc6 {[%clk 0:00:16]} 32. Rd3 {[%clk 0:00:17]} 32... Bc4 {[%clk 0:00:14.2]} 33. Rd4 {[%clk 0:00:15.5]} 33... Bd5 {[%clk 0:00:13.2]} 34. Red1 {[%clk 0:00:15]} 34... Bc4 {[%clk 0:00:10.4]} 35. Rxc4+ {[%clk 0:00:13.7]} 35... Kb5 {[%clk 0:00:10.1]} 36. Rdc1 {[%clk 0:00:13.7]} 36... c6 {[%clk 0:00:09.7]} 37. R4c2 {[%clk 0:00:11.5]} 37... a5 {[%clk 0:00:09.2]} 38. Re2 {[%clk 0:00:10.5]} 38... axb4 {[%clk 0:00:08.4]} 39. Re7 {[%clk 0:00:10.5]} 39... b6 {[%clk 0:00:08]} 40. Rxh7 {[%clk 0:00:10.5]} 40... c5 {[%clk 0:00:06.5]} 41. Rg7 {[%clk 0:00:10.5]} 41... c4 {[%clk 0:00:06]} 42. Rxg6 {[%clk 0:00:10.5]} 42... b3 {[%clk 0:00:04.6]} 43. h4 {[%clk 0:00:10.5]} 43... Kb4 {[%clk 0:00:04.2]} 44. Rg5 {[%clk 0:00:10.2]} 44... b2 {[%clk 0:00:03.6]} 45. Rg4 {[%clk 0:00:10.2]} 45... bxc1=Q+ {[%clk 0:00:01.1]} 46. Kg2 {[%clk 0:00:09.3]} 46... Qh6 {[%clk 0:00:00.3]} 47. h5 {[%clk 0:00:08.1]} 1-0

[Event "Live Chess"]
[Site "Chess.com"]
[Date "2010.12.14"]
[Round "-"]
[White "hipposcottimus"]
[Black "dantime13"]
[Result "1-0"]
[CurrentPosition "k7/1Q2Rp1p/6p1/pp6/8/7P/P4PP1/6K1 b - -"]
[Timezone "UTC"]
[ECO "B12"]
[ECOUrl "https://www.chess.com/openings/Caro-Kann-Defense-2.d4"]
[UTCDate "2010.12.14"]
[UTCTime "11:21:53"]
[WhiteElo "1612"]
[BlackElo "1662"]
[TimeControl "60"]
[Termination "hipposcottimus won by checkmate"]
[StartTime "11:21:53"]
[EndDate "2010.12.14"]
[EndTime "11:23:48"]
[Link "https://www.chess.com/game/live/77177994"]

1. e4 {[%clk 0:01:00]} 1... c6 {[%clk 0:01:00]} 2. d4 {[%clk 0:00:56.8]} 2... b5 {[%clk 0:01:00]} 3. c4 {[%clk 0:00:55.3]} 3... Bb7 {[%clk 0:01:00]} 4. cxb5 {[%clk 0:00:54.1]} 4... cxb5 {[%clk 0:00:59.7]} 5. Nc3 {[%clk 0:00:52.7]} 5... a6 {[%clk 0:00:59.7]} 6. Bd3 {[%clk 0:00:51.1]} 6... g6 {[%clk 0:00:59.2]} 7. d5 {[%clk 0:00:50.4]} 7... Bg7 {[%clk 0:00:59.2]} 8. Nf3 {[%clk 0:00:49.3]} 8... Bxc3+ {[%clk 0:00:58.4]} 9. bxc3 {[%clk 0:00:49.1]} 9... Qc8 {[%clk 0:00:56.3]} 10. O-O {[%clk 0:00:48.7]} 10... Qxc3 {[%clk 0:00:55.3]} 11. Rb1 {[%clk 0:00:44.5]} 11... Qf6 {[%clk 0:00:53.2]} 12. Bb2 {[%clk 0:00:43.8]} 12... e5 {[%clk 0:00:52.2]} 13. dxe6 {[%clk 0:00:42.1]} 13... Qxe6 {[%clk 0:00:47.4]} 14. Bxh8 {[%clk 0:00:41.8]} 14... Nf6 {[%clk 0:00:46.7]} 15. e5 {[%clk 0:00:41]} 15... Ng4 {[%clk 0:00:44.2]} 16. h3 {[%clk 0:00:37.8]} 16... Nh6 {[%clk 0:00:41.6]} 17. Bf6 {[%clk 0:00:35.8]} 17... Nc6 {[%clk 0:00:40]} 18. Bg7 {[%clk 0:00:34.9]} 18... Nf5 {[%clk 0:00:36.7]} 19. Bf6 {[%clk 0:00:33.4]} 19... Nxe5 {[%clk 0:00:31.5]} 20. Re1 {[%clk 0:00:32]} 20... Qxf6 {[%clk 0:00:30.2]} 21. Nxe5 {[%clk 0:00:30.6]} 21... O-O-O {[%clk 0:00:27.8]} 22. Rc1+ {[%clk 0:00:28.3]} 22... Kb8 {[%clk 0:00:26.2]} 23. Be4 {[%clk 0:00:28]} 23... d5 {[%clk 0:00:24.4]} 24. Nc6+ {[%clk 0:00:25.1]} 24... Bxc6 {[%clk 0:00:21.8]} 25. Bxf5 {[%clk 0:00:24.8]} 25... Qxf5 {[%clk 0:00:19.5]} 26. Rxc6 {[%clk 0:00:23.9]} 26... Rc8 {[%clk 0:00:17.7]} 27. Qc1 {[%clk 0:00:22.7]} 27... Rxc6 {[%clk 0:00:16.5]} 28. Qxc6 {[%clk 0:00:22.5]} 28... Qc8 {[%clk 0:00:15.4]} 29. Qxd5 {[%clk 0:00:20.5]} 29... Qb7 {[%clk 0:00:13.8]} 30. Re8+ {[%clk 0:00:18.4]} 30... Ka7 {[%clk 0:00:13.1]} 31. Qd6 {[%clk 0:00:16.8]} 31... Qb6 {[%clk 0:00:10.5]} 32. Re7+ {[%clk 0:00:15.9]} 32... Ka8 {[%clk 0:00:09.8]} 33. Qxb6 {[%clk 0:00:15.1]} 33... a5 {[%clk 0:00:08.1]} 34. Qb7# {[%clk 0:00:14.5]} 1-0

[Event "Live Chess"]
[Site "Chess.com"]
[Date "2010.12.14"]
[Round "-"]
[White "dantime13"]
[Black "hipposcottimus"]
[Result "1-0"]
[CurrentPosition "8/5P2/2k5/8/6Q1/8/3BK3/8 b - -"]
[Timezone "UTC"]
[ECO "C44"]
[ECOUrl "https://www.chess.com/openings/Ponziani-Opening-Jaenisch-Counterattack-4.d4"]
[UTCDate "2010.12.14"]
[UTCTime "11:17:55"]
[WhiteElo "1671"]
[BlackElo "1601"]
[TimeControl "60"]
[Termination "dantime13 won on time"]
[StartTime "11:17:55"]
[EndDate "2010.12.14"]
[EndTime "11:20:21"]
[Link "https://www.chess.com/game/live/77177159"]

1. e4 {[%clk 0:01:00]} 1... e5 {[%clk 0:01:00]} 2. Nf3 {[%clk 0:00:59.5]} 2... Nc6 {[%clk 0:00:59.7]} 3. c3 {[%clk 0:00:59.1]} 3... Nf6 {[%clk 0:00:59.3]} 4. d4 {[%clk 0:00:58.8]} 4... d5 {[%clk 0:00:58.8]} 5. dxe5 {[%clk 0:00:56.5]} 5... dxe4 {[%clk 0:00:57.6]} 6. exf6 {[%clk 0:00:55.9]} 6... Qxd1+ {[%clk 0:00:54.8]} 7. Kxd1 {[%clk 0:00:55.9]} 7... exf3 {[%clk 0:00:54.3]} 8. gxf3 {[%clk 0:00:55.4]} 8... Be6 {[%clk 0:00:51.4]} 9. Bg2 {[%clk 0:00:53.6]} 9... O-O-O+ {[%clk 0:00:50.2]} 10. Bd2 {[%clk 0:00:51.4]} 10... Ne5 {[%clk 0:00:49.9]} 11. Re1 {[%clk 0:00:50.6]} 11... Nd3 {[%clk 0:00:49.2]} 12. Re2 {[%clk 0:00:48.7]} 12... Nxb2+ {[%clk 0:00:48.3]} 13. Kc2 {[%clk 0:00:48.1]} 13... Nc4 {[%clk 0:00:47.7]} 14. a3 {[%clk 0:00:45]} 14... gxf6 {[%clk 0:00:46.9]} 15. Bf4 {[%clk 0:00:42.2]} 15... Bf5+ {[%clk 0:00:45.3]} 16. Kb3 {[%clk 0:00:39.3]} 16... Na5+ {[%clk 0:00:42.5]} 17. Kb2 {[%clk 0:00:36]} 17... Nc4+ {[%clk 0:00:41]} 18. Kb3 {[%clk 0:00:34.8]} 18... Na5+ {[%clk 0:00:40.3]} 19. Kb2 {[%clk 0:00:33.8]} 19... Bxa3+ {[%clk 0:00:39.3]} 20. Kxa3 {[%clk 0:00:32.5]} 20... Nc4+ {[%clk 0:00:38.4]} 21. Kb3 {[%clk 0:00:31.3]} 21... Bg6 {[%clk 0:00:35.1]} 22. Kxc4 {[%clk 0:00:29.8]} 22... b5+ {[%clk 0:00:34.4]} 23. Kb3 {[%clk 0:00:28.6]} 23... f5 {[%clk 0:00:32.7]} 24. Rd2 {[%clk 0:00:27.2]} 24... Rde8 {[%clk 0:00:31.5]} 25. Na3 {[%clk 0:00:23.9]} 25... Kb7 {[%clk 0:00:31]} 26. Nxb5 {[%clk 0:00:22.9]} 26... a6 {[%clk 0:00:30.5]} 27. Nd4 {[%clk 0:00:21.4]} 27... Rb8 {[%clk 0:00:29.7]} 28. Be3 {[%clk 0:00:18.6]} 28... Ka7+ {[%clk 0:00:29.3]} 29. Kc2 {[%clk 0:00:18]} 29... Ka8 {[%clk 0:00:28.9]} 30. Nc6 {[%clk 0:00:17]} 30... Rbc8 {[%clk 0:00:26.4]} 31. Ne7 {[%clk 0:00:16.1]} 31... Rce8 {[%clk 0:00:25.3]} 32. Nxg6 {[%clk 0:00:15.4]} 32... fxg6 {[%clk 0:00:25]} 33. f4+ {[%clk 0:00:14.9]} 33... Kb8 {[%clk 0:00:22.6]} 34. Rb1+ {[%clk 0:00:14.5]} 34... Kc8 {[%clk 0:00:22.3]} 35. Kd1 {[%clk 0:00:11.4]} 35... Rd8 {[%clk 0:00:21.9]} 36. Ke2 {[%clk 0:00:09.6]} 36... Rxd2+ {[%clk 0:00:20.6]} 37. Bxd2 {[%clk 0:00:09.6]} 37... Kd8 {[%clk 0:00:19.3]} 38. Rb8+ {[%clk 0:00:07.9]} 38... Ke7 {[%clk 0:00:18.9]} 39. Rxh8 {[%clk 0:00:07.9]} 39... Kf7 {[%clk 0:00:18.6]} 40. Ra8 {[%clk 0:00:07.5]} 40... Kg7 {[%clk 0:00:18.2]} 41. Rxa6 {[%clk 0:00:07.5]} 41... Kh6 {[%clk 0:00:17.8]} 42. Ra7 {[%clk 0:00:07.5]} 42... c6 {[%clk 0:00:17.4]} 43. Rc7 {[%clk 0:00:07.5]} 43... c5 {[%clk 0:00:16.1]} 44. Rc6 {[%clk 0:00:07.5]} 44... Kh5 {[%clk 0:00:14.7]} 45. Rxc5 {[%clk 0:00:06.2]} 45... g5 {[%clk 0:00:14.4]} 46. Rb5 {[%clk 0:00:06.2]} 46... g4 {[%clk 0:00:12.9]} 47. c4 {[%clk 0:00:06.2]} 47... Kh4 {[%clk 0:00:11.8]} 48. c5 {[%clk 0:00:06.2]} 48... h5 {[%clk 0:00:10.7]} 49. h3 {[%clk 0:00:05.4]} 49... g3 {[%clk 0:00:09.9]} 50. fxg3+ {[%clk 0:00:04]} 50... Kxg3 {[%clk 0:00:09.2]} 51. c6 {[%clk 0:00:04]} 51... Kxg2 {[%clk 0:00:08.6]} 52. c7 {[%clk 0:00:04]} 52... Kxh3 {[%clk 0:00:08.3]} 53. c8=Q {[%clk 0:00:04]} 53... Kg4 {[%clk 0:00:08]} 54. Qg8+ {[%clk 0:00:04]} 54... Kh4 {[%clk 0:00:06.1]} 55. Qh8 {[%clk 0:00:04]} 55... Kg4 {[%clk 0:00:04.3]} 56. Rxf5 {[%clk 0:00:04]} 56... Kxf5 {[%clk 0:00:03.2]} 57. Qxh5+ {[%clk 0:00:04]} 57... Ke6 {[%clk 0:00:02.7]} 58. Qh4 {[%clk 0:00:03.5]} 58... Kd6 {[%clk 0:00:02.2]} 59. Qg4 {[%clk 0:00:03.5]} 59... Kc5 {[%clk 0:00:01.9]} 60. f5 {[%clk 0:00:03.5]} 60... Kb5 {[%clk 0:00:01.6]} 61. f6 {[%clk 0:00:03.5]} 61... Kc6 {[%clk 0:00:01.3]} 62. f7 {[%clk 0:00:03.5]} 1-0

[Event "Live Chess"]
[Site "Chess.com"]
[Date "2010.12.14"]
[Round "-"]
[White "hipposcottimus"]
[Black "mikage_ayessa"]
[Result "0-1"]
[CurrentPosition "2r2rk1/pp1b1pp1/4p2p/3pP3/7n/7q/P1B2P2/R1Q2RK1 w - -"]
[Timezone "UTC"]
[ECO "C00"]
[ECOUrl "https://www.chess.com/openings/French-Defense-Knight-Variation"]
[UTCDate "2010.12.14"]
[UTCTime "11:15:15"]
[WhiteElo "1608"]
[BlackElo "1833"]
[TimeControl "60"]
[Termination "mikage_ayessa won on time"]
[StartTime "11:15:15"]
[EndDate "2010.12.14"]
[EndTime "11:17:22"]
[Link "https://www.chess.com/game/live/77176628"]

1. e4 {[%clk 0:01:00]} 1... e6 {[%clk 0:01:00]} 2. Nf3 {[%clk 0:00:59.7]} 2... c6 {[%clk 0:00:59.8]} 3. c4 {[%clk 0:00:58.1]} 3... d5 {[%clk 0:00:59.8]} 4. cxd5 {[%clk 0:00:56.7]} 4... cxd5 {[%clk 0:00:58.9]} 5. e5 {[%clk 0:00:56.4]} 5... Nc6 {[%clk 0:00:56.7]} 6. d4 {[%clk 0:00:55.9]} 6... Qb6 {[%clk 0:00:55.1]} 7. Nc3 {[%clk 0:00:55.6]} 7... Nge7 {[%clk 0:00:53.6]} 8. Be3 {[%clk 0:00:54.9]} 8... Qxb2 {[%clk 0:00:51.5]} 9. Bb5 {[%clk 0:00:54.1]} 9... Qxc3+ {[%clk 0:00:49.6]} 10. Bd2 {[%clk 0:00:51.3]} 10... Qb2 {[%clk 0:00:44.3]} 11. Ba4 {[%clk 0:00:50.9]} 11... Bd7 {[%clk 0:00:40.6]} 12. O-O {[%clk 0:00:49.5]} 12... Nf5 {[%clk 0:00:37.7]} 13. Bb3 {[%clk 0:00:44.9]} 13... Be7 {[%clk 0:00:36.3]} 14. Ng5 {[%clk 0:00:36.8]} 14... Qxd4 {[%clk 0:00:29.5]} 15. Nf3 {[%clk 0:00:28.6]} 15... Qg4 {[%clk 0:00:26.2]} 16. h3 {[%clk 0:00:21]} 16... Qg6 {[%clk 0:00:24.9]} 17. Qc1 {[%clk 0:00:14.9]} 17... O-O {[%clk 0:00:23]} 18. Bg5 {[%clk 0:00:13.8]} 18... Bxg5 {[%clk 0:00:21]} 19. Nxg5 {[%clk 0:00:13.1]} 19... h6 {[%clk 0:00:20]} 20. Nf3 {[%clk 0:00:11.6]} 20... Rac8 {[%clk 0:00:14.9]} 21. Bc2 {[%clk 0:00:11]} 21... Ncd4 {[%clk 0:00:13.6]} 22. Nh4 {[%clk 0:00:08.9]} 22... Qh5 {[%clk 0:00:08.7]} 23. g4 {[%clk 0:00:06.3]} 23... Qxh4 {[%clk 0:00:06.2]} 24. gxf5 {[%clk 0:00:05.7]} 24... Nxf5 {[%clk 0:00:04.1]} 25. Kh1 {[%clk 0:00:04.5]} 25... Qxh3+ {[%clk 0:00:03.1]} 26. Kg1 {[%clk 0:00:04.3]} 26... Nh4 {[%clk 0:00:02.4]} 0-1

[Event "Live Chess"]
[Site "Chess.com"]
[Date "2010.12.14"]
[Round "-"]
[White "Raja27Dev"]
[Black "hipposcottimus"]
[Result "0-1"]
[CurrentPosition "6k1/p2q2pp/8/P2r2p1/1n6/1Pr2R1P/1K2N1P1/R7 w - -"]
[Timezone "UTC"]
[ECO "C41"]
[ECOUrl "https://www.chess.com/openings/Philidor-Defense-3.Bc4"]
[UTCDate "2010.12.14"]
[UTCTime "11:12:53"]
[WhiteElo "1419"]
[BlackElo "1612"]
[TimeControl "60"]
[Termination "hipposcottimus won on time"]
[StartTime "11:12:53"]
[EndDate "2010.12.14"]
[EndTime "11:14:42"]
[Link "https://www.chess.com/game/live/77176194"]

1. e4 {[%clk 0:01:00]} 1... e5 {[%clk 0:01:00]} 2. Nf3 {[%clk 0:00:59.8]} 2... d6 {[%clk 0:00:59.5]} 3. Bc4 {[%clk 0:00:58.5]} 3... d5 {[%clk 0:00:58.9]} 4. exd5 {[%clk 0:00:57.4]} 4... Bd6 {[%clk 0:00:58.5]} 5. d3 {[%clk 0:00:55.4]} 5... e4 {[%clk 0:00:58]} 6. Ng5 {[%clk 0:00:53.6]} 6... b5 {[%clk 0:00:57.7]} 7. Bxb5+ {[%clk 0:00:50.7]} 7... Bd7 {[%clk 0:00:57.4]} 8. Bxd7+ {[%clk 0:00:49.6]} 8... Qxd7 {[%clk 0:00:57.1]} 9. dxe4 {[%clk 0:00:48.6]} 9... Nf6 {[%clk 0:00:56.6]} 10. b3 {[%clk 0:00:45.6]} 10... O-O {[%clk 0:00:55]} 11. Bb2 {[%clk 0:00:44.9]} 11... Ng4 {[%clk 0:00:51.2]} 12. h3 {[%clk 0:00:40.5]} 12... Be5 {[%clk 0:00:50.7]} 13. Bxe5 {[%clk 0:00:38.1]} 13... Nxe5 {[%clk 0:00:50.4]} 14. f4 {[%clk 0:00:35.4]} 14... f6 {[%clk 0:00:50.1]} 15. fxe5 {[%clk 0:00:33.6]} 15... fxg5 {[%clk 0:00:49.8]} 16. Kd2 {[%clk 0:00:30.9]} 16... Rf4 {[%clk 0:00:43.3]} 17. Rf1 {[%clk 0:00:30.9]} 17... Rxe4 {[%clk 0:00:42.2]} 18. Nc3 {[%clk 0:00:28.8]} 18... Rxe5 {[%clk 0:00:40.5]} 19. a4 {[%clk 0:00:24.7]} 19... c6 {[%clk 0:00:39.5]} 20. a5 {[%clk 0:00:23.7]} 20... cxd5 {[%clk 0:00:38.2]} 21. Kc1 {[%clk 0:00:19.8]} 21... d4 {[%clk 0:00:37.1]} 22. Ne2 {[%clk 0:00:18.6]} 22... Rd5 {[%clk 0:00:35.6]} 23. Nf4 {[%clk 0:00:17.6]} 23... Rd6 {[%clk 0:00:34.5]} 24. Ne2 {[%clk 0:00:13.4]} 24... Rd5 {[%clk 0:00:33.4]} 25. c3 {[%clk 0:00:12.6]} 25... dxc3 {[%clk 0:00:31.1]} 26. Qc2 {[%clk 0:00:10.2]} 26... Nc6 {[%clk 0:00:28.8]} 27. Qxc3 {[%clk 0:00:09]} 27... Rc8 {[%clk 0:00:27.7]} 28. Rf3 {[%clk 0:00:04.2]} 28... Nb4 {[%clk 0:00:26.8]} 29. Kb2 {[%clk 0:00:00.9]} 29... Rxc3 {[%clk 0:00:25.5]} 0-1

[Event "Live Chess"]
[Site "Chess.com"]
[Date "2010.12.14"]
[Round "-"]
[White "hipposcottimus"]
[Black "Raja27Dev"]
[Result "1-0"]
[CurrentPosition "1Q6/5pkp/8/1K6/6r1/4b1P1/2R4P/8 b - -"]
[Timezone "UTC"]
[ECO "D02"]
[ECOUrl "https://www.chess.com/openings/Queens-Pawn-Opening-Zukertort-Variation"]
[UTCDate "2010.12.14"]
[UTCTime "11:10:43"]
[WhiteElo "1608"]
[BlackElo "1423"]
[TimeControl "60"]
[Termination "hipposcottimus won on time"]
[StartTime "11:10:43"]
[EndDate "2010.12.14"]
[EndTime "11:12:34"]
[Link "https://www.chess.com/game/live/77175711"]

1. Nf3 {[%clk 0:01:00]} 1... d5 {[%clk 0:01:00]} 2. d4 {[%clk 0:00:58.3]} 2... Nc6 {[%clk 0:01:00]} 3. Nc3 {[%clk 0:00:57.9]} 3... Bf5 {[%clk 0:01:00]} 4. e4 {[%clk 0:00:57.2]} 4... dxe4 {[%clk 0:00:59]} 5. Nh4 {[%clk 0:00:56.2]} 5... g6 {[%clk 0:00:56.8]} 6. Nxf5 {[%clk 0:00:55.3]} 6... gxf5 {[%clk 0:00:56.2]} 7. d5 {[%clk 0:00:55]} 7... Nb4 {[%clk 0:00:54.4]} 8. Bb5+ {[%clk 0:00:54.7]} 8... c6 {[%clk 0:00:52.2]} 9. a3 {[%clk 0:00:54.4]} 9... cxb5 {[%clk 0:00:50.5]} 10. axb4 {[%clk 0:00:54.1]} 10... e6 {[%clk 0:00:50.2]} 11. Nxb5 {[%clk 0:00:53.2]} 11... exd5 {[%clk 0:00:49]} 12. Nc3 {[%clk 0:00:52.9]} 12... a5 {[%clk 0:00:46]} 13. Ne2 {[%clk 0:00:52.6]} 13... axb4 {[%clk 0:00:43.9]} 14. Rxa8 {[%clk 0:00:52.3]} 14... Qxa8 {[%clk 0:00:43.1]} 15. Qxd5 {[%clk 0:00:52]} 15... Ne7 {[%clk 0:00:39.8]} 16. Qe5 {[%clk 0:00:51]} 16... Rg8 {[%clk 0:00:36.8]} 17. Nf4 {[%clk 0:00:50.6]} 17... Qa1 {[%clk 0:00:35.4]} 18. Kd2 {[%clk 0:00:48]} 18... b3 {[%clk 0:00:31.2]} 19. Nd5 {[%clk 0:00:47.2]} 19... Qa5+ {[%clk 0:00:27.5]} 20. c3 {[%clk 0:00:44.8]} 20... Qxd5+ {[%clk 0:00:25.3]} 21. Qxd5 {[%clk 0:00:43]} 21... Nxd5 {[%clk 0:00:24.6]} 22. c4 {[%clk 0:00:42.8]} 22... e3+ {[%clk 0:00:22.6]} 23. fxe3 {[%clk 0:00:41.5]} 23... Nb4 {[%clk 0:00:22.4]} 24. g3 {[%clk 0:00:40.6]} 24... Bh6 {[%clk 0:00:20.2]} 25. Kc3 {[%clk 0:00:40.1]} 25... f4 {[%clk 0:00:19.7]} 26. Kxb3 {[%clk 0:00:39]} 26... fxe3 {[%clk 0:00:19.1]} 27. Kxb4 {[%clk 0:00:38.4]} 27... e2 {[%clk 0:00:17.4]} 28. Re1 {[%clk 0:00:37.9]} 28... Bxc1 {[%clk 0:00:14.9]} 29. Rxe2+ {[%clk 0:00:37.6]} 29... Kf8 {[%clk 0:00:12.5]} 30. Re1 {[%clk 0:00:37.3]} 30... b6 {[%clk 0:00:12.5]} 31. c5 {[%clk 0:00:36.9]} 31... Bxb2 {[%clk 0:00:11.7]} 32. cxb6 {[%clk 0:00:35.2]} 32... Rg4+ {[%clk 0:00:09.5]} 33. Kb5 {[%clk 0:00:34.5]} 33... Bc3 {[%clk 0:00:07.4]} 34. Rc1 {[%clk 0:00:32.1]} 34... Bd2 {[%clk 0:00:05.5]} 35. Rc2 {[%clk 0:00:31.4]} 35... Be3 {[%clk 0:00:02.3]} 36. b7 {[%clk 0:00:30.3]} 36... Kg7 {[%clk 0:00:00.5]} 37. b8=Q {[%clk 0:00:27.1]} 1-0

[Event "Live Chess"]
[Site "Chess.com"]
[Date "2010.12.14"]
[Round "-"]
[White "Raja27Dev"]
[Black "hipposcottimus"]
[Result "1-0"]
[CurrentPosition "8/K7/p7/P7/8/5k1p/7P/8 b - -"]
[Timezone "UTC"]
[ECO "D02"]
[ECOUrl "https://www.chess.com/openings/Queens-Pawn-Opening-Zukertort-Variation-2...c6"]
[UTCDate "2010.12.14"]
[UTCTime "11:08:06"]
[WhiteElo "1427"]
[BlackElo "1604"]
[TimeControl "60"]
[Termination "Raja27Dev won on time"]
[StartTime "11:08:06"]
[EndDate "2010.12.14"]
[EndTime "11:10:30"]
[Link "https://www.chess.com/game/live/77175195"]

1. d4 {[%clk 0:01:00]} 1... d5 {[%clk 0:01:00]} 2. Nf3 {[%clk 0:01:00]} 2... c6 {[%clk 0:00:59.7]} 3. Nc3 {[%clk 0:01:00]} 3... Nd7 {[%clk 0:00:59.3]} 4. Ng5 {[%clk 0:00:58.9]} 4... e6 {[%clk 0:00:59]} 5. e4 {[%clk 0:00:57.7]} 5... f6 {[%clk 0:00:58.7]} 6. Nf3 {[%clk 0:00:55.7]} 6... e5 {[%clk 0:00:58.3]} 7. exd5 {[%clk 0:00:54.7]} 7... e4 {[%clk 0:00:57.2]} 8. Nh4 {[%clk 0:00:53]} 8... cxd5 {[%clk 0:00:56.4]} 9. Nxd5 {[%clk 0:00:50.8]} 9... Be7 {[%clk 0:00:54.2]} 10. Bf4 {[%clk 0:00:49.1]} 10... Nb6 {[%clk 0:00:50.1]} 11. Nc7+ {[%clk 0:00:47.4]} 11... Kf7 {[%clk 0:00:47.8]} 12. Nxa8 {[%clk 0:00:46.4]} 12... Bd6 {[%clk 0:00:46.8]} 13. Bxd6 {[%clk 0:00:44.5]} 13... Qxd6 {[%clk 0:00:46.5]} 14. Nf5 {[%clk 0:00:39.7]} 14... Qc6 {[%clk 0:00:38.8]} 15. Qg4 {[%clk 0:00:37.3]} 15... Bxf5 {[%clk 0:00:33.8]} 16. Qf4 {[%clk 0:00:30.9]} 16... Nh6 {[%clk 0:00:32.7]} 17. f3 {[%clk 0:00:29.8]} 17... Nxa8 {[%clk 0:00:30.8]} 18. fxe4 {[%clk 0:00:28.6]} 18... Re8 {[%clk 0:00:29.4]} 19. d5 {[%clk 0:00:25.8]} 19... Rxe4+ {[%clk 0:00:28.9]} 20. Qxe4 {[%clk 0:00:19.7]} 20... Bxe4 {[%clk 0:00:20.2]} 21. Kd2 {[%clk 0:00:19.7]} 21... Qxd5+ {[%clk 0:00:19.1]} 22. Bd3 {[%clk 0:00:17.7]} 22... Nb6 {[%clk 0:00:18.8]} 23. c4 {[%clk 0:00:15.8]} 23... Bxg2 {[%clk 0:00:18.3]} 24. cxd5 {[%clk 0:00:13.8]} 24... Bxh1 {[%clk 0:00:18]} 25. Rxh1 {[%clk 0:00:13.1]} 25... Nxd5 {[%clk 0:00:16.5]} 26. Re1 {[%clk 0:00:13.1]} 26... Nf4 {[%clk 0:00:15.8]} 27. Bc4+ {[%clk 0:00:13.1]} 27... Nd5 {[%clk 0:00:14.6]} 28. Bxd5+ {[%clk 0:00:11.9]} 28... Kg6 {[%clk 0:00:14.3]} 29. Kd3 {[%clk 0:00:11.1]} 29... Nf5 {[%clk 0:00:14]} 30. Be4 {[%clk 0:00:10.5]} 30... h6 {[%clk 0:00:12.9]} 31. Bxf5+ {[%clk 0:00:09.8]} 31... Kxf5 {[%clk 0:00:12.7]} 32. Rf1+ {[%clk 0:00:09.8]} 32... Kg6 {[%clk 0:00:12.2]} 33. Rf3 {[%clk 0:00:08.9]} 33... Kh7 {[%clk 0:00:11.9]} 34. b4 {[%clk 0:00:08.9]} 34... g5 {[%clk 0:00:11.3]} 35. a4 {[%clk 0:00:08.9]} 35... Kg6 {[%clk 0:00:10.7]} 36. b5 {[%clk 0:00:08.9]} 36... g4 {[%clk 0:00:10.2]} 37. a5 {[%clk 0:00:08.6]} 37... gxf3 {[%clk 0:00:09.7]} 38. b6 {[%clk 0:00:08.6]} 38... a6 {[%clk 0:00:08.1]} 39. Ke3 {[%clk 0:00:08.6]} 39... Kg5 {[%clk 0:00:07.5]} 40. Kxf3 {[%clk 0:00:07.8]} 40... f5 {[%clk 0:00:07.1]} 41. Ke3 {[%clk 0:00:07.1]} 41... h5 {[%clk 0:00:06.8]} 42. Kd4 {[%clk 0:00:06]} 42... h4 {[%clk 0:00:06.5]} 43. Kc5 {[%clk 0:00:06]} 43... f4 {[%clk 0:00:06.1]} 44. Kd6 {[%clk 0:00:05]} 44... f3 {[%clk 0:00:05.8]} 45. Kc7 {[%clk 0:00:05]} 45... f2 {[%clk 0:00:05.4]} 46. Kxb7 {[%clk 0:00:04.7]} 46... f1=Q {[%clk 0:00:04.3]} 47. Kb8 {[%clk 0:00:04.5]} 47... Qf8+ {[%clk 0:00:03.3]} 48. Ka7 {[%clk 0:00:03.7]} 48... h3 {[%clk 0:00:01.7]} 49. b7 {[%clk 0:00:03.7]} 49... Kf4 {[%clk 0:00:01]} 50. b8=Q+ {[%clk 0:00:03.7]} 50... Qxb8+ {[%clk 0:00:00.5]} 51. Kxb8 {[%clk 0:00:02.8]} 51... Kf3 {[%clk 0:00:00.2]} 52. Ka7 {[%clk 0:00:02.1]} 1-0